bitfinex-derivatives/quotes_SOLF0:USTF0_20241206
["timestamp","ask_amount","ask_price","bid_price","bid_amount"]
[1733458931198,8.17158569,241.5,241.42,1.4635]
[1733458932692,7.76098569,241.5,241.44,2.0699]
[1733458933195,2.0692,241.53,241.46,2.0697]
[1733458933491,5.69158569,241.52,241.46,2.0697]
[1733458933992,2.48,241.55,241.45,5.69158569]
[1733458934192,8.17158569,241.55,241.46,1.5064]
[1733458934893,5.69158569,241.53,241.46,1.5064]
[1733458935397,5.69158569,241.53,241.48,2.0696]
[1733458936691,5.69158569,241.55,241.46,1.5064]
[1733458936888,5.69158569,241.55,241.49,2.0695]
[1733458938297,5.69158569,241.55,241.47,2.0696]
[1733458938792,5.69158569,241.53,241.47,2.0696]
[1733458940893,5.69158569,241.53,241.46,1.5064]
[1733458941096,5.69158569,241.53,241.48,2.0696]
[1733458942501,5.69158569,241.53,241.46,1.5064]
[1733458943499,5.69158569,241.55,241.48,2.0696]
[1733458943703,5.69158569,241.55,241.47,5.69158569]
[1733458944009,5.69158569,241.55,241.46,1.5064]
[1733458944506,5.69158569,241.55,241.49,2.0696]
[1733458944707,5.69158569,241.55,241.46,1.5064]
[1733458945103,5.69158569,241.51,241.46,1.5064]
[1733458945402,5.69158569,241.47,241.42,2.9216]
[1733458945609,5.69158569,241.47,241.42,1.4635]
[1733458946302,7.76148569,241.47,241.39,2.0705]
[1733458946503,7.76148569,241.47,241.35,1.4337]
[1733458946504,5.69158569,241.43,241.36,1.4752]
[1733458946910,5.69158569,241.41,241.36,1.4752]
[1733458947204,2.48,241.45,241.36,1.4752]
[1733458947205,5.69158569,241.39,241.36,1.4752]
[1733458947605,5.69158569,241.39,241.34,1.5055]
[1733458948412,5.69158569,241.39,241.38,0.21697]
[1733458948813,8.17158569,241.39,241.38,0.21697]
[1733458949409,8.17158569,241.39,241.38,0.19447]
[1733458949613,2.0707,241.38,241.27,1.535]
[1733458949807,8.17158569,241.39,241.27,1.535]
[1733458949808,5.69158569,241.34,241.27,1.535]
[1733458951011,5.69158569,241.38,241.3,5.69158569]
[1733458951218,2.48,241.39,241.3,5.69158569]
[1733458951514,5.69158569,241.4,241.3,5.69158569]
[1733458952214,4.5503,241.42,241.32,2.0711]
[1733458952811,2.0703,241.42,241.32,2.0711]
[1733458953015,2.48,241.42,241.35,2.0709]
[1733458953813,11.38091327,241.46,241.39,2.0705]
[1733458954816,11.38091327,241.46,241.4,2.0704]
[1733458955418,11.38091327,241.46,241.38,2.0706]
[1733458955612,11.38091327,241.46,241.34,1.5372]
[1733458956316,11.38091327,241.46,241.4,2.0704]
[1733458956512,8.90091327,241.46,241.4,2.0704]
[1733458957222,2.48,241.48,241.4,2.0704]
[1733458960518,4.5498,241.48,241.4,2.0704]
[1733458961516,8.90091327,241.49,241.4,2.0704]
[1733458961718,10.97031327,241.52,241.44,2.0701]
[1733458962016,10.97031327,241.52,241.38,2.9607]
[1733458964218,8.90091327,241.52,241.38,2.9607]
[1733458964422,2.0695,241.51,241.43,2.0701]
[1733458965224,8.90091327,241.49,241.38,2.9607]
[1733458965426,2.0697,241.48,241.38,2.9607]
[1733458966127,2.0697,241.48,241.4,2.0704]
[1733458966520,8.90091327,241.49,241.4,2.0704]
[1733458967617,8.90091327,241.52,241.38,2.9607]
[1733458968223,10.97031327,241.52,241.44,2.07]
[1733458970017,8.90091327,241.52,241.44,2.07]
[1733458970223,2.46,241.55,241.4,2.0703]
[1733458970224,2.0698,241.48,241.4,2.0703]
[1733458971321,2.0698,241.48,241.41,2.0703]
[1733458971521,10.97061327,241.49,241.41,2.0703]
[1733458972017,5.69268543,241.48,241.41,2.0703]
[1733458973822,7.76238543,241.48,241.41,2.0703]
[1733458975825,5.69268543,241.46,241.39,2.0705]
[1733458976128,5.69268543,241.46,241.38,2.9607]
[1733458976327,5.69268543,241.44,241.38,2.9607]
[1733458976525,5.69268543,241.42,241.38,2.9607]
[1733458977327,7.76278543,241.44,241.38,5.0313]
[1733458977523,5.69268543,241.44,241.38,2.9607]
[1733458978521,5.69268543,241.4,241.28,0.15381]
[1733458978723,5.69268543,241.4,241.31,2.46]
[1733458979120,5.69268543,241.38,241.3,2.46]
[1733458979524,2.46,241.48,241.3,2.46]
[1733458979727,5.69268543,241.38,241.3,2.46]
[1733458980121,5.69268543,241.38,241.31,2.0711]
[1733458980719,5.69268543,241.38,241.32,2.0711]
[1733458982835,7.76328543,241.38,241.31,2.0712]
[1733458983130,5.69268543,241.36,241.29,2.8623]
[1733458983833,7.76348543,241.36,241.29,2.8623]
[1733458984430,5.69268543,241.36,241.3,2.0713]
[1733458985125,5.69268543,241.33,241.28,0.15381]
[1733458985330,7.76388543,241.31,241.28,0.15381]
[1733458985831,5.69268543,241.31,241.28,0.15381]
[1733458986624,2.46,241.36,241.28,0.15381]
[1733458986826,5.69268543,241.33,241.28,0.15381]
[1733458987032,5.69268543,241.31,241.28,0.15381]
[1733458987231,2.46,241.36,241.28,0.15381]
[1733458987232,5.69268543,241.29,241.28,0.15381]
[1733458988827,43.1,241.49,241.28,0.15381]
[1733458989033,43.1,241.49,241.28,5.84649543]
[1733458989034,5.69268543,241.36,241.28,5.84649543]
[1733458989327,43.1,241.49,241.28,5.84649543]
[1733458989328,5.69268543,241.38,241.31,2.0711]
[1733458990130,8.9028638,241.41,241.31,2.0711]
[1733458990733,2.0705,241.39,241.31,2.0711]
[1733458991125,2.0705,241.39,241.28,0.15381]
[1733458991330,11.3628638,241.42,241.3,2.0712]
[1733458991932,2.46,241.42,241.3,2.0712]
[1733458992128,11.3628638,241.42,241.28,0.15381]
[1733458992436,2.0704,241.4,241.32,2.0711]
[1733458992629,11.3628638,241.42,241.32,2.0711]
[1733458992833,13.4331638,241.42,241.33,2.0709]
[1733458995133,2.0703,241.41,241.33,2.0709]
[1733458996129,8.9028638,241.56,241.28,0.15381]
[1733458996130,2.0701,241.43,241.35,2.0707]
[1733458996435,2.0701,241.43,241.32,2.46]
[1733458997731,8.9028638,241.45,241.32,2.46]
[1733458997928,8.9028638,241.41,241.32,2.46]
[1733458998132,8.9028638,241.41,241.28,2.61381]
[1733458998335,2.0707,241.36,241.28,4.68511]
[1733458999036,2.0707,241.36,241.28,4.5313]
[1733458999239,2.0709,241.34,241.23,3.5354]
[1733458999537,2.0709,241.34,241.23,1.4637]
[1733458999538,2.46,241.34,241.23,1.4637]
[1733458999736,11.3628638,241.34,241.23,1.4637]
[1733459000133,11.3628638,241.34,241.22,5.42]
[1733459000736,11.3628638,241.34,241.22,2.96]
[1733459001234,2.0713,241.29,241.22,2.96]
[1733459002035,2.0713,241.29,241.2,2.072]
[1733459003334,2.072,241.2,241.18,0.33487]
[1733459003539,2.46,241.19,241.18,0.33487]
[1733459005742,8.9028638,241.21,241.18,0.33487]
[1733459005937,8.9028638,241.24,241.18,0.33487]
[1733459006137,2.46,241.23,241.18,0.33487]
[1733459007248,2.46,241.22,241.18,0.33487]
[1733459010438,8.9028638,241.24,241.18,0.33487]
[1733459010738,8.9028638,241.27,241.21,2.0719]
[1733459011135,8.9028638,241.27,241.18,0.33487]
[1733459011335,11.3628638,241.3,241.18,0.33487]
[1733459012039,8.9028638,241.3,241.18,0.33487]
[1733459012647,8.9028638,241.3,241.23,2.0717]
[1733459013036,8.9028638,241.3,241.21,2.46]
[1733459013237,8.9028638,241.3,241.24,2.0717]
[1733459014243,10.9740638,241.3,241.21,2.46]
[1733459014447,8.9028638,241.3,241.2,2.072]
[1733459015142,8.9028638,241.26,241.18,2.40697]
[1733459015346,8.9028638,241.26,241.18,0.33487]
[1733459016037,2.0717,241.24,241.18,0.33487]
[1733459016241,8.9028638,241.26,241.18,0.33487]
[1733459017439,8.9028638,241.26,241.18,2.40707]
[1733459018049,2.0714,241.27,241.18,2.40707]
[1733459019044,2.0715,241.26,241.18,2.40707]
[1733459019242,10.9743638,241.26,241.18,2.40707]
[1733459020550,2.0717,241.25,241.18,0.33487]
[1733459021045,8.9028638,241.26,241.18,0.33487]
[1733459021853,2.0718,241.23,241.18,0.33487]
[1733459022949,8.9028638,241.26,241.18,0.33487]
[1733459023141,2.46,241.29,241.18,0.33487]
[1733459023349,2.0716,241.25,241.18,0.33487]
[1733459023750,8.9028638,241.26,241.15,2.9645]
[1733459023950,2.0717,241.24,241.15,5.0369]
[1733459024157,2.0717,241.24,241.15,2.9645]
[1733459024742,8.9028638,241.26,241.17,2.0723]
[1733459024743,2.0716,241.25,241.17,2.0723]
[1733459024957,2.46,241.26,241.15,2.9645]
[1733459026653,2.44,241.29,241.15,4.99774993]
[1733459027749,4.5113,241.29,241.15,4.99774993]
[1733459028752,4.5113,241.29,241.15,2.9645]
[1733459029250,2.44,241.29,241.15,5.06982688]
[1733459029660,2.44,241.29,241.15,2.9645]
[1733459030755,2.0714,241.28,241.15,2.9645]
[1733459031157,2.0714,241.28,241.15,5.0139643]
[1733459032049,2.0714,241.28,241.22,2.0718]
[1733459032851,10.9740638,241.3,241.22,2.0718]
[1733459033054,10.9740638,241.3,241.15,5.0139643]
[1733459033259,10.9740638,241.3,241.23,2.0718]
[1733459033457,8.9028638,241.3,241.23,2.0718]
[1733459036960,8.9028638,241.33,241.19,11.3428638]
[1733459037159,8.9028638,241.36,241.22,8.9028638]
[1733459037569,8.9028638,241.36,241.3,2.0711]
[1733459037866,8.9028638,241.36,241.26,2.44]
[1733459038065,8.9028638,241.36,241.3,2.0711]
[1733459039263,43.12,241.45,241.27,2.9323]
[1733459039264,8.9028638,241.4,241.27,2.9323]
[1733459040769,8.9028638,241.4,241.32,2.0709]
[1733459041766,8.9028638,241.4,241.27,2.9323]
[1733459042863,8.9028638,241.56,241.28,8.9028638]
[1733459042864,8.9028638,241.43,241.28,8.9028638]
[1733459043059,8.9028638,241.43,241.29,1.4676]
[1733459043264,2.0702,241.42,241.29,1.4676]
[1733459043868,8.9028638,241.43,241.35,2.0707]
[1733459044069,8.9028638,241.43,241.33,2.44]
[1733459044271,8.9028638,241.46,241.33,2.44]
[1733459044469,8.9028638,241.46,241.4,2.0703]
[1733459045065,8.9028638,241.46,241.38,2.0704]
[1733459045965,8.9028638,241.46,241.39,2.0704]
[1733459046968,8.9028638,241.49,241.33,2.44]
[1733459047168,17.02642741,241.6,241.29,1.4676]
[1733459047169,2.44,241.57,241.4,8.9028638]
[1733459047363,8.9028638,241.55,241.41,6.9088]
[1733459047873,8.9028638,241.55,241.44,2.0699]
[1733459048066,2.0692,241.53,241.44,2.0699]
[1733459048268,2.0692,241.53,241.45,2.0699]
[1733459048469,8.9028638,241.55,241.41,6.9088]
[1733459048773,8.9028638,241.58,241.44,8.9028638]
[1733459048967,8.9028638,241.58,241.41,15.8116638]
[1733459049365,8.9028638,241.58,241.42,2.0384267]
[1733459049574,19.46642741,241.6,241.44,8.9028638]
[1733459049769,19.46642741,241.6,241.45,2.10220518]
[1733459050470,19.09502741,241.6,241.52,2.0693]
[1733459050772,8.9028638,241.61,241.51,2.44]
[1733459051075,8.9028638,241.64,241.52,1.4485]
[1733459051283,8.9028638,241.64,241.52,4.3853]
[1733459051582,8.9028638,241.67,241.52,4.3853]
[1733459052378,2.0682,241.65,241.57,2.0688]
[1733459052975,2.0682,241.65,241.56,2.0689]
[1733459053477,2.0682,241.65,241.52,4.3853]
[1733459053478,10.9709638,241.67,241.52,4.3853]
[1733459053983,10.9709638,241.67,241.53,8.9028638]
[1733459054893,8.9028638,241.67,241.53,8.9028638]
[1733459055377,8.9028638,241.67,241.52,4.3853]
[1733459056685,2.0682,241.65,241.57,2.0689]
[1733459057878,8.9028638,241.64,241.52,4.3853]
[1733459058080,8.9028638,241.61,241.52,2.8499]
[1733459058285,8.9028638,241.61,241.5,2.44]
[1733459058681,8.9028638,241.61,241.5,4.5094]
[1733459059288,8.9028638,241.61,241.5,2.44]
[1733459059491,10.9714638,241.61,241.51,2.0694]
[1733459059788,8.9028638,241.61,241.51,2.0694]
[1733459060788,2.0686,241.6,241.51,2.0694]
[1733459062282,2.0686,241.6,241.52,2.0693]
[1733459062487,2.0686,241.6,241.5,2.44]
[1733459063291,11.3428638,241.67,241.5,11.3428638]
[1733459063486,11.3428638,241.67,241.51,3.0474]
[1733459064091,2.0683,241.64,241.56,2.0689]
[1733459064394,2.0683,241.64,241.51,3.0474]
[1733459064595,2.0683,241.64,241.56,2.069]
[1733459065091,2.0679,241.69,241.58,2.0688]
[1733459065395,11.3428638,241.71,241.56,11.3428638]
[1733459065691,2.0683,241.64,241.56,2.44]
[1733459065994,2.0683,241.64,241.51,3.0474]
[1733459065995,8.9028638,241.64,241.51,3.0474]
[1733459066288,8.9028638,241.64,241.52,2.44]
[1733459066487,10.9712638,241.64,241.54,2.0691]
[1733459066688,8.9028638,241.64,241.54,2.0691]
[1733459067690,2.0684,241.63,241.54,2.0691]
[1733459068997,8.9028638,241.64,241.54,2.0691]
[1733459069194,8.9028638,241.64,241.52,2.44]
[1733459069195,8.9028638,241.64,241.52,2.0693]
[1733459069600,8.9028638,241.64,241.51,5.4874]
[1733459069801,2.0684,241.63,241.54,2.0691]
[1733459070398,8.9028638,241.64,241.52,2.0692]
[1733459070801,2.0687,241.59,241.51,5.4874]
[1733459071103,8.9028638,241.64,241.51,5.4874]
[1733459071396,2.0687,241.59,241.51,5.4874]
[1733459071795,8.9028638,241.61,241.49,2.0695]
[1733459072304,8.9028638,241.61,241.48,2.44]
[1733459072305,2.0688,241.59,241.48,2.44]
[1733459072800,2.0688,241.59,241.51,2.0694]
[1733459073898,2.0686,241.61,241.52,2.0693]
[1733459074204,2.44,241.66,241.5,8.9028638]
[1733459075401,2.0684,241.63,241.5,8.9028638]
[1733459076601,2.0685,241.62,241.54,2.0691]
[1733459076793,2.0685,241.62,241.5,8.9028638]
[1733459077202,2.0685,241.62,241.51,1.0353057]
[1733459077397,2.0685,241.62,241.5,8.9028638]
[1733459077594,2.0685,241.62,241.51,1.03530226]
[1733459077805,2.0685,241.62,241.55,2.069]
[1733459080297,2.0684,241.63,241.55,2.069]
[1733459080705,8.9028638,241.67,241.57,2.0688]
[1733459081002,2.0682,241.65,241.53,2.44]
[1733459081393,2.0682,241.65,241.54,1.4168]
[1733459081594,2.0682,241.65,241.56,2.0689]
[1733459081800,2.0682,241.65,241.54,2.9509]
[1733459082196,2.0682,241.65,241.55,1.03513506]
[1733459082505,13.4109638,241.67,241.56,1.03507416]
[1733459082703,13.4109638,241.67,241.54,2.9509]
[1733459082901,4.5081,241.67,241.55,1.0350766]
[1733459083102,4.5081,241.67,241.56,1.0350766]
[1733459083301,4.5081,241.67,241.57,1.0350766]
[1733459083603,4.5081,241.67,241.54,4.4984]
[1733459083800,4.5081,241.67,241.55,2.69113403]
[1733459084002,8.9028638,241.7,241.56,1.03505155]
[1733459084197,2.0681,241.66,241.59,2.0687]
[1733459086003,5.68515875,241.65,241.59,2.0687]
[1733459087502,5.68515875,241.65,241.6,1.03502271]
[1733459087697,5.68515875,241.65,241.59,2.0687]
[1733459087901,5.68515875,241.67,241.6,2.0686]
[1733459089705,5.68515875,241.65,241.57,5.68515875]
[1733459089904,5.68515875,241.65,241.58,1.03504138]
[1733459090101,5.68515875,241.67,241.59,1.03504138]
[1733459090409,5.68515875,241.67,241.6,1.03503536]
[1733459090605,5.68515875,241.67,241.59,8.10515875]
[1733459090806,5.68515875,241.67,241.6,1.0350149]
[1733459091005,5.68515875,241.67,241.59,8.10515875]
[1733459091307,5.68515875,241.67,241.6,1.03500697]
[1733459091507,5.68515875,241.67,241.61,1.03500349]
[1733459091708,5.68515875,241.67,241.61,2.0685]
[1733459092607,5.68515875,241.7,241.63,2.0683]
[1733459093709,2.42,241.72,241.61,5.68515875]
[1733459093907,5.68515875,241.71,241.64,2.0683]
[1733459094509,7.75285875,241.71,241.63,2.0683]
[1733459094902,2.42,241.76,241.63,5.68515875]
[1733459095103,5.68515875,241.74,241.67,2.0679]
[1733459095402,5.68515875,241.74,241.65,8.10515875]
[1733459095713,5.68515875,241.76,241.69,2.0678]
[1733459098004,0.24401,241.8,241.71,5.68515875]
[1733459098316,0.24401,241.8,241.73,5.68515875]
[1733459098516,0.24401,241.8,241.75,2.0673]
[1733459099113,0.24401,241.8,241.76,2.0672]
[1733459099315,0.24401,241.8,241.75,5.68515875]
[1733459099511,0.24401,241.8,241.71,2.42]
[1733459099714,0.24401,241.8,241.73,7.75255875]
[1733459101516,7.75215875,241.79,241.71,2.0676]
[1733459101716,7.75215875,241.79,241.71,7.75275875]
[1733459102317,5.68515875,241.79,241.71,5.68515875]
[1733459102511,5.68515875,241.79,241.72,2.0675]
[1733459102914,0.24401,241.8,241.72,2.0675]
[1733459103112,0.24401,241.8,241.73,5.68515875]
[1733459103915,0.24401,241.8,241.75,5.68515875]
[1733459104417,0.24401,241.8,241.73,5.68515875]
[1733459104619,0.24401,241.8,241.73,7.75265875]
[1733459105415,5.92916875,241.8,241.73,5.68515875]
[1733459106122,5.92916875,241.8,241.72,2.0675]
[1733459107417,2.0673,241.75,241.67,3.4814]
[1733459107613,2.0673,241.75,241.67,9.16655875]
[1733459107818,5.68515875,241.74,241.67,1.4135]
[1733459108716,5.68515875,241.72,241.65,4.4881]
[1733459109220,5.68515875,241.72,241.65,2.42]
[1733459110120,2.42,241.75,241.65,2.42]
[1733459110121,2.0676,241.71,241.65,2.42]
[1733459111715,2.0679,241.68,241.6,1.392]
[1733459112324,2.0682,241.65,241.59,2.42]
[1733459112721,2.42,241.69,241.59,2.42]
[1733459113017,2.0682,241.65,241.59,2.42]
[1733459113413,2.42,241.69,241.59,2.42]
[1733459113616,2.0681,241.66,241.59,2.42]
[1733459114013,2.42,241.69,241.59,2.42]
[1733459114213,2.0682,241.65,241.59,2.42]
[1733459116520,2.0682,241.65,241.57,2.951]
[1733459116720,2.0682,241.64,241.57,2.951]
[1733459117523,2.0681,241.66,241.57,2.951]
[1733459117720,2.42,241.69,241.57,2.951]
[1733459118624,2.0682,241.65,241.57,2.951]
[1733459119527,8.87743487,241.67,241.52,2.0692]
[1733459120125,2.0686,241.6,241.51,2.0693]
[1733459120617,2.0687,241.59,241.5,13.36683487]
[1733459120818,2.42,241.63,241.5,13.36683487]
[1733459121422,2.0687,241.59,241.5,13.36683487]
[1733459121622,2.42,241.63,241.5,4.4894]
[1733459121824,2.0693,241.51,241.45,1.4655]
[1733459122024,2.0693,241.51,241.37,2.58920604]
[1733459122025,2.42,241.52,241.38,2.8692]
[1733459122227,11.29743487,241.52,241.4,2.0703]
[1733459123728,2.0695,241.49,241.4,2.0703]
[1733459123927,11.29743487,241.52,241.41,2.0702]
[1733459124323,2.0694,241.5,241.41,2.0702]
[1733459125129,2.0697,241.47,241.38,6.4444]
[1733459125724,2.42,241.46,241.38,2.8692]
[1733459125929,2.42,241.45,241.38,2.8692]
[1733459126128,2.42,241.45,241.3,2.42]
[1733459126329,2.42,241.45,241.31,2.9276]
[1733459126330,8.87743487,241.44,241.31,2.9276]
[1733459126723,2.0703,241.41,241.31,2.9276]
[1733459126929,8.87743487,241.44,241.31,2.9276]
[1733459127934,2.42,241.43,241.31,2.9276]
[1733459128235,2.0702,241.41,241.31,2.9276]
[1733459129537,2.42,241.4,241.31,2.9276]
[1733459129737,8.87743487,241.56,241.31,11.80503487]
[1733459129738,8.87743487,241.48,241.31,11.80503487]
[1733459129945,2.42,241.47,241.31,11.80503487]
[1733459130544,2.0699,241.45,241.35,2.0707]
[1733459131142,2.0699,241.45,241.31,11.80503487]
[1733459131143,2.07,241.44,241.33,2.0708]
[1733459131340,8.87743487,241.45,241.31,11.80503487]
[1733459131540,8.87743487,241.45,241.31,2.9276]
[1733459132646,2.0701,241.42,241.32,2.0709]
[1733459132842,2.42,241.41,241.32,2.0709]
[1733459134744,4.4902,241.41,241.32,2.0709]
[1733459135243,2.42,241.41,241.31,2.9276]
[1733459136950,2.0704,241.39,241.3,2.0711]
[1733459137150,2.42,241.41,241.28,8.87743487]
[1733459137342,2.42,241.42,241.28,8.87743487]
[1733459137746,2.42,241.42,241.32,2.071]
[1733459137948,2.42,241.43,241.28,8.87743487]
[1733459138344,2.42,241.43,241.31,8.87743487]
[1733459138549,2.42,241.43,241.32,1.5151]
[1733459139249,8.87743487,241.49,241.33,2.42]
[1733459139453,2.42,241.48,241.34,8.87743487]
[1733459139854,4.4897,241.48,241.38,2.0704]
[1733459140146,2.0697,241.48,241.38,2.0704]
[1733459140347,11.29743487,241.49,241.27,2.8755]
[1733459140549,11.29743487,241.49,241.31,2.071]
[1733459140550,8.87743487,241.42,241.31,2.071]
[1733459141756,2.0703,241.4,241.31,2.071]
[1733459143356,2.0703,241.4,241.28,1.3912]
[1733459143357,8.87743487,241.42,241.32,2.0709]
[1733459143556,8.87743487,241.42,241.28,1.3912]
[1733459144758,8.87743487,241.42,241.3,2.0711]
[1733459144759,2.0703,241.4,241.3,2.0711]
[1733459145250,8.87743487,241.38,241.18,0.28054]
[1733459145455,8.87743487,241.35,241.22,2.8796]
[1733459145654,11.29743487,241.35,241.22,2.8796]
[1733459145959,5.70082859,241.32,241.23,5.70082859]
[1733459147762,7.77182859,241.32,241.23,7.77252859]
[1733459147955,2.071,241.32,241.23,2.0717]
[1733459148359,2.071,241.32,241.22,2.8796]
[1733459148360,2.0712,241.3,241.22,2.8796]
[1733459149161,8.90778548,241.32,241.18,0.28054]
[1733459149353,21.32778548,241.44,241.18,0.28054]
[1733459149354,11.32778548,241.29,241.18,0.28054]
[1733459149758,2.0715,241.26,241.18,0.28054]
[1733459150756,8.90778548,241.29,241.18,0.28054]
[1733459150959,4.4912,241.3,241.18,0.28054]
[1733459151162,4.4912,241.3,241.19,1.03666757]
[1733459151457,4.4912,241.3,241.18,0.28054]
[1733459151659,4.4912,241.3,241.21,2.0719]
[1733459153362,4.4912,241.3,241.22,1.03661848]
[1733459153560,4.4912,241.3,241.21,2.0719]
[1733459153968,2.071,241.32,241.18,9.18832548]
[1733459154166,2.42,241.33,241.19,2.69510608]
[1733459154363,8.90778548,241.34,241.2,6.54730608]
[1733459154364,11.32778548,241.34,241.2,6.54730608]
[1733459154559,11.32778548,241.34,241.21,5.63520608]
[1733459154764,11.32778548,241.34,241.22,2.69510608]
[1733459154962,2.0708,241.35,241.23,2.69510608]
[1733459155162,4.4908,241.35,241.24,2.69510608]
[1733459155461,2.42,241.35,241.25,2.69510608]
[1733459155667,2.0708,241.34,241.26,2.69510608]
[1733459155862,2.0708,241.34,241.27,1.03657926]
[1733459156061,2.0708,241.34,241.24,2.0716]
[1733459156366,2.0708,241.34,241.25,2.69489192]
[1733459156566,2.0709,241.33,241.26,1.03649689]
[1733459156767,2.0709,241.33,241.27,1.03649689]
[1733459156967,2.0709,241.33,241.24,2.0716]
[1733459157268,2.0709,241.33,241.25,2.69491694]
[1733459157465,2.0709,241.33,241.26,1.03650651]
[1733459157772,2.0709,241.33,241.27,1.03650651]
[1733459158069,2.0709,241.33,241.28,1.03650651]
[1733459158263,2.0709,241.33,241.24,2.0716]
[1733459158463,2.0709,241.33,241.25,2.69491344]
[1733459158664,2.0709,241.33,241.26,1.03650517]
[1733459158866,4.4908,241.35,241.27,1.03650517]
[1733459159063,2.42,241.35,241.25,2.0715]
[1733459159368,2.42,241.35,241.26,1.03650017]
[1733459159570,2.42,241.35,241.27,1.03650017]
[1733459159764,2.42,241.35,241.25,2.0715]
[1733459160066,2.0709,241.33,241.26,1.03650447]
[1733459160262,8.90778548,241.33,241.27,1.03650447]
[1733459160562,2.42,241.35,241.21,2.9401]
[1733459160563,8.90778548,241.3,241.21,2.9401]
[1733459160766,2.0716,241.25,241.22,2.69519656]
[1733459160969,2.0716,241.25,241.23,1.03661406]
[1733459161270,8.90778548,241.27,241.18,2.42]
[1733459161467,8.90778548,241.27,241.19,2.69543133]
[1733459161659,8.90778548,241.27,241.2,1.03670439]
[1733459161863,2.0715,241.26,241.21,1.03670439]
[1733459162060,2.0715,241.26,241.22,1.03670439]
[1733459162265,2.0715,241.26,241.17,2.0722]
[1733459162562,2.0715,241.26,241.18,2.69562101]
[1733459162761,2.0715,241.26,241.19,2.69562101]
[1733459162966,2.0715,241.26,241.2,2.69562101]
[1733459163166,2.0715,241.26,241.21,1.03677731]
[1733459163367,2.0715,241.26,241.22,1.03677731]
[1733459163675,2.0715,241.26,241.23,1.03673995]
[1733459163877,2.0715,241.26,241.17,2.0722]
[1733459164075,2.0715,241.26,241.18,2.695506]
[1733459164375,2.0715,241.26,241.19,2.695506]
[1733459164577,2.0715,241.26,241.17,2.0722]
[1733459164578,2.0715,241.26,241.2,2.695506]
[1733459164872,2.0715,241.26,241.21,2.695506]
[1733459165072,2.0715,241.26,241.22,1.03673308]
[1733459165274,2.0715,241.26,241.23,1.03673308]
[1733459165573,2.0715,241.26,241.17,2.0722]
[1733459165777,2.0715,241.26,241.18,2.6954792]
[1733459165971,2.0715,241.26,241.19,2.6954792]
[1733459166278,2.0715,241.26,241.2,2.6954792]
[1733459166578,8.90778548,241.27,241.21,1.03672277]
[1733459166879,8.90778548,241.27,241.22,1.03672277]
[1733459167078,8.90778548,241.27,241.16,6.0003]
[1733459167079,2.0716,241.25,241.16,6.0003]
[1733459167372,2.0716,241.25,241.17,2.69560794]
[1733459167576,2.0716,241.25,241.16,6.0003]
[1733459167577,2.0716,241.25,241.18,2.69560794]
[1733459167780,2.0716,241.25,241.19,1.65884769]
[1733459167975,2.0717,241.23,241.19,2.6956275]
[1733459168173,5.70460852,241.22,241.2,1.03677981]
[1733459168381,5.70460852,241.22,241.16,1.508]
[1733459168575,5.70460852,241.22,241.17,2.6958365]
[1733459168877,5.70460852,241.22,241.18,1.03686019]
[1733459169075,5.70460852,241.2,241.15,0.37111]
[1733459169374,5.70460852,241.18,241.15,0.37111]
[1733459172675,5.70460852,241.16,241.15,0.37111]
[1733459173078,7.77690852,241.16,241.15,0.37111]
[1733459181287,7.77690852,241.16,241.15,1e-05]
[1733459181685,2.0723,241.16,241.15,1e-05]
[1733459181878,10.19690852,241.16,241.15,1e-05]
[1733459186388,10.19690852,241.16,240.91,5.70460852]
[1733459186389,5.70460852,241.16,240.91,5.70460852]
[1733459186686,115.0,241.25,240.91,5.70460852]
[1733459186687,5.70460852,241.0,240.91,5.70460852]
[1733459187388,5.70460852,241.0,240.94,2.0742]
[1733459187591,5.70460852,241.0,240.91,5.70460852]
[1733459188090,5.70460852,241.0,240.94,2.0742]
[1733459190289,5.07064852,241.0,240.94,2.0742]